[Event "HSK IM Invitational 2022"]
[Site "Hamburg"]
[Date "2022.05.21"]
[Round "2.1"]
[White "Clarke, Brandon G I"]
[Black "Kotyk, Michael"]
[Result "1-0"]
[ECO "C54"]
[WhiteElo "2445"]
[BlackElo "2170"]
[Annotator "TA"]
[PlyCount "61"]
[EventDate "2022.05.20"]
[EventType "tourn"]
[EventCountry "GER"]
[SourceTitle "playchess.com"]
[Source "ChessBase"]
[SourceQuality "1"]
[TimeControl "40/5400+30:1800+30"]

{[%evp 9,61,0,0,-62,-60,-60,-64,-42,-66,-88,-81,-71,10,8,12,14,12,18,17,15,3,11,11,12,12,12,103,101,168,207,210,209,318,293,510,107,107,107,237,219,567,127,110,122,564,490,879,807,2171,2028,29988,29989,29988,29987]} 1. e4 {[%emt 0:00:30]} e5 {[%emt 0:00:06]} 2. Nf3 {[%emt 0:00:06]} Nc6 {[%emt 0:00:04]} 3. Bc4 {[%emt 0:01:07]} Bc5 {[%emt 0:00:06]} 4. c3 {[%emt 0:00:21]} Nf6 {[%emt 0:00:04]} 5. d4 {[%emt 0:00:23]} exd4 {[%emt 0:00:06]} 6. b4 {[%emt 0:00:31] C54: Giuoco Piano: 4 c3 Nf6, main lines with 5 d4 and 5 d3.} (6. cxd4 $11 Bb4+ 7. Bd2) 6... Bb6 $1 $15 {[%emt 0:01:34]} 7. e5 {[%emt 0:00:18][%cal Be4e5,Be5f6,Bf6g7][%mdl 32] [#]} d5 $1 {[%emt 0:00:40]} 8. exf6 {[%emt 0:00:18] Black is slightly better.} dxc4 {[%emt 0:00:06]} 9. Qe2+ {[%emt 0:00:06] The main line 9.Qe2+ scores better than 9.b5.} Be6 $1 {[%emt 0:00:05]} (9... Kf8 10. b5 Na5 11. Qe5 $14) 10. b5 {[%emt 0:00:21]} d3 {[%emt 0:00:33]} (10... Na5 $1 $17 11. fxg7 Rg8) 11. Qe4 $1 $11 {[%emt 0:01:16]} Nb4 $1 {[%emt 0:00:19]} 12. O-O $1 {[%emt 0:01:07]} Nc2 {[%emt 0:00:05]} 13. fxg7 {[%emt 0:01:04]} Rg8 {[%emt 0:00:07]} 14. Bg5 {[%emt 0:00:30]} (14. Qxh7 f6 15. Qg6+ (15. Qe4 $2 Kf7 $19) 15... Bf7 $15) 14... Qd5 $132 {[%emt 0:00:39][%mdl 2048] Black has counterplay} 15. Qxh7 {[%emt 0:00:04]} Kd7 {[%emt 0:00:06] [#] Strongly threatening ...Bf5.} 16. Nbd2 $1 {[%emt 0:01:07]} Bf5 {[%emt 0:03:17]} (16... Nxa1 17. Re1 Bxf2+ 18. Kxf2 $18) 17. Qh5 {[%emt 0:01:09] [#]} Rxg7 $146 {[%emt 0:07:20]} (17... Nxa1 $2 18. Ne5+ Kc8 19. Bf6 $18) (17... Rae8 $1 $11 18. Bf6 Nxa1 19. Rxa1 Kc8) ({Predecessor:} 17... Rae8 18. Bf6 Nxa1 19. Rxa1 Kc8 20. h4 c6 21. bxc6 bxc6 22. Nxc4 Qxc4 23. Qxf5+ Qe6 {1-0 (75) Yoo,C (2457)-Vidyarthi,V (2165) Las Vegas 2021}) 18. Bf6 $16 {[%emt 0:03:58]} Rh7 {[%emt 0:03:51] [#]} (18... Rg6 $16 19. Ne5+ Ke6 20. Nxg6 fxg6) 19. Qg5 $1 $18 {[%emt 0:00:24]} Re8 {[%emt 0:04:47] Prevents Ne5+.} (19... Nxa1 $2 20. Ne5+ Qxe5 21. Bxe5 $18) 20. Nxc4 $1 {[%emt 0:02:24]} Nxa1 {[%emt 0:15:56]} (20... Bxf2+ $2 21. Rxf2 Kc8 22. Rd1 $1 $18) (20... Kc8 $142) 21. Nfe5+ {[%emt 0:16:52]} Ke6 $2 {[%emt 0:02:45] [#]} (21... Rxe5 22. Nxe5+ Ke6) 22. Rxa1 $2 {[%emt 0:09:27]} (22. Re1 $1 $18 {and the rest is easy. aiming for Nxd3+.} Nc2 {[#]} 23. Bg7 $1 Qxb5 24. Qf6+ Kd5 25. Nxb6+ Qxb6 26. c4+ (26. Qxf5 Nxe1 27. Nd7+ Kc6 $16) 26... Kd4 27. Nf3+ Kxc4 28. Nd2+ Kb5 29. Rb1+ Nb4 30. Qxf5+ Ka6 31. Qxh7) 22... d2 $16 {[%emt 0:09:11]} 23. Nxd2 {[%emt 0:10:29] The board is on fire. Pair of Knights!} ({But not} 23. Rd1 $6 Qe4 24. Nxd2 Qe2 $11) 23... Rg8 {[%emt 0:02:47]} 24. Qxg8 $18 {[%emt 0:00:50]} Bxf2+ $2 {[%emt 0:00:35]} (24... Qxd2 25. Nf3 (25. Bg7 $2 {is a self mate.} Qxf2+ 26. Kh1 Rxh2+ 27. Kxh2 Qh4#) 25... Qxf2+ 26. Kh1 Kxf6) 25. Kxf2 $2 {[%emt 0:04:01]} (25. Kh1 $18) 25... Qxd2+ $16 {[%emt 0:00:41]} 26. Kg1 {[%emt 0:00:50]} Qe3+ $2 {[%emt 0:04:47][%mdl 8192]} (26... Kxf6 $16 {is more resistant.} 27. Nf3 Qe3+ 28. Kh1 Bg6) 27. Kh1 $18 {[%emt 0:02:50]} Qf4 {[%emt 0:00:55] [#] Inhibits Rf1.} (27... Kxf6 $142 28. Ng4+ Bxg4) 28. Ng4 $1 {[%emt 0:04:25]} Qxg4 {[%emt 0:01:16]} (28... Bxg4 29. Qxh7) 29. Qd8 {[%emt 0:00:59] White threatens Re1+ and mate.} Rh3 {[%emt 0:09:49]} 30. Re1+ {[%emt 0:01:15]} Be4 {[%emt 0:00:04]} 31. Qc8+ {[%emt 0:00:49] Weighted Error Value: White=0.55/Black=0.91} 1-0

[Event "HSK IM Invitational 2022"]
[Site "Hamburg"]
[Date "2022.05.21"]
[Round "2.2"]
[White "Kopylov, Daniel"]
[Black "Schulze, Lara"]
[Result "1/2-1/2"]
[ECO "B67"]
[WhiteElo "2292"]
[BlackElo "2303"]
[Annotator "TA"]
[PlyCount "82"]
[EventDate "2022.05.20"]
[EventType "tourn"]
[EventCountry "GER"]
[SourceTitle "playchess.com"]
[Source "ChessBase"]
[SourceQuality "1"]
[TimeControl "40/5400+30:1800+30"]

{[%evp 20,82,39,47,46,23,23,23,16,30,28,31,30,18,26,0,12,0,0,0,23,0,20,19,13,28,30,25,24,-8,-17,-16,-14,-10,-15,-12,-7,-4,0,0,0,0,0,-8,-8,-30,-10,-8,-8,-8,-8,-2,-3,-2,-1,-22,-17,-18,-14,-11,-11,-34,-8,-31,0]} 1. e4 {[%emt 0:00:04]} c5 {[%emt 0:00:03]} 2. Nf3 {[%emt 0:00:11]} Nc6 {[%emt 0:00:05]} 3. d4 {[%emt 0:00:10]} cxd4 {[%emt 0:00:07]} 4. Nxd4 {[%emt 0:00:06]} Nf6 {[%emt 0:00:06]} 5. Nc3 {[%emt 0:00:07]} d6 {[%emt 0:00:06]} 6. Bg5 {[%emt 0:00:09]} e6 {[%emt 0:00:10]} 7. Qd2 {[%emt 0:00:20]} a6 {[%emt 0:00:12]} 8. O-O-O {[%emt 0:00:25]} Bd7 {[%emt 0:00:08]} 9. f4 {[%emt 0:00:08]} h6 {[%emt 0:00:50]} 10. Bh4 {[%emt 0:00:29]} Be7 {[%emt 0:00:24]} 11. Nf3 {[%emt 0:02:05]} Qc7 {[%emt 0:00:12] B67: Sicilian: Richter-Rauzer: 7...a6 8 0-0-0 Bd7, lines without 9 f4 Be7.} 12. Bxf6 {[%emt 0:03:07]} (12. g4 {is interesting.} Rd8 13. Rg1 b5 14. g5) 12... Bxf6 {[%emt 0:01:40]} 13. Qxd6 {[%emt 0:03:52]} Qxd6 {[%emt 0:01:10] White has an edge.} 14. Rxd6 {[%emt 0:00:08]} Bxc3 {[%emt 0:05:57]} 15. bxc3 {[%emt 0:00:10]} Ke7 {[%emt 0:00:10]} 16. Rd2 {[%emt 0:03:42] [#]} Rac8 $146 {[%emt 0:04:39]} ({Predecessor:} 16... Rhc8 17. Be2 Rc7 18. Rhd1 Be8 19. Rd3 Rac8 20. Re3 Nb8 21. Kb2 Nd7 22. Nd2 b5 {½-½ (66) Friberg,H-Helmertz,P (2280) Motala 1976}) 17. Be2 {[%emt 0:01:17]} Rc7 {[%emt 0:03:50]} 18. Rhd1 {[%emt 0:06:05]} Rhc8 {[%emt 0:05:02]} 19. Nd4 {[%emt 0:02:18]} Be8 {[%emt 0:12:12]} 20. Nb3 {[%emt 0:13:46]} Nb8 {[%emt 0:03:40][%cal Bc6b8,Bb8d7,Bd7c5,Bc5a4,Ba4b2][%mdl 32]} 21. c4 {[%emt 0:03:17]} Nd7 {[%emt 0:01:25]} 22. Rd6 {[%emt 0:19:07] Prevents Nb6.} Nc5 {[%emt 0:11:23]} 23. e5 {[%emt 0:07:15]} Na4 {[%emt 0:06:46]} 24. Kd2 {[%emt 0:17:57] Prevents Nc3.} Nb2 {[%emt 0:06:39][%csl LRc4,LRd1]} 25. Rb1 {[%emt 0:00:32]} Nxc4+ {[%emt 0:00:21]} 26. Bxc4 {[%emt 0:00:26]} Rxc4 {[%emt 0:00:05]} 27. Nd4 {[%emt 0:01:16]} b5 {[%emt 0:03:08]} 28. a3 {[%emt 0:01:23] Prevents b4.} R8c5 {[%emt 0:04:42]} 29. Rb4 {[%emt 0:05:50]} a5 {[%emt 0:01:15]} 30. Rxc4 {[%emt 0:09:48]} Rxc4 $11 {[%emt 0:00:12][%mdl 4096] Endgame KRB-KRN} 31. Kc1 {[%emt 0:00:00]} Bd7 {[%emt 0:01:41]} 32. Ne2 {[%emt 0:00:00]} g5 {[%emt 0:05:05]} (32... f6 $5 {[%cal Rf6e5]}) 33. g3 {[%emt 0:00:00]} gxf4 {[%emt 0:05:49]} 34. gxf4 {[%emt 0:00:00]} f6 {[%emt 0:00:47]} 35. Rd4 {[%emt 0:00:36] [#] Against Re4. exf6+ is the strong threat.} Rc7 {[%emt 0:00:11]} 36. exf6+ {[%emt 0:00:43]} Kxf6 {[%emt 0:00:08]} 37. Kd2 {[%emt 0:00:34]} Bc6 {[%emt 0:03:49]} 38. Ng3 {[%emt 0:01:03]} Bd5 {[%emt 0:02:24]} 39. c3 {[%emt 0:00:14]} Rc5 {[%emt 0:02:55]} 40. Nf1 {[%emt 0:00:20]} Bg2 {[%emt 0:06:27]} 41. Ng3 {[%emt 0:04:51]} Bd5 {[%emt 0:01:25] Weighted Error Value: White=0.08 (flawless) /Black=0.04 (flawless)} 1/2-1/2

[Event "HSK IM Invitational 2022"]
[Site "Hamburg"]
[Date "2022.05.21"]
[Round "2.3"]
[White "Miezis, Normunds"]
[Black "Garner, Isaac"]
[Result "1-0"]
[ECO "C01"]
[WhiteElo "2452"]
[BlackElo "2240"]
[Annotator "TA"]
[PlyCount "129"]
[EventDate "2022.05.20"]
[EventType "tourn"]
[EventCountry "GER"]
[SourceTitle "playchess.com"]
[Source "ChessBase"]
[SourceQuality "1"]
[TimeControl "40/5400+30:1800+30"]

{[%evp 14,129,-15,-5,0,-25,-2,0,-1,0,0,0,0,0,14,0,0,0,0,0,0,-65,-65,-68,-78,-95,-86,-96,-86,-70,-61,-72,-59,-89,0,-39,0,0,0,0,0,-8,0,0,0,-6,7,-8,-6,-8,0,-5,0,-1,20,20,20,18,25,24,24,24,27,24,25,25,25,18,42,25,49,51,54,47,47,37,43,9,12,0,40,43,82,73,74,65,169,169,150,160,234,220,309,298,459,460,447,441,485,485,1100,414,998,665,29973,29974,5949,1866,1654,1183,29973,29977,29977,29978,29964,29966,4943,702]} 1. c4 {[%emt 0:00:08]} e6 {[%emt 0:00:17][%cal Be7e6,Be6d5][%mdl 32]} 2. e4 {[%emt 0:00:55]} d5 {[%emt 0:00:12]} 3. exd5 {[%emt 0:00:10]} exd5 {[%emt 0:00:07]} 4. d4 {[%emt 0:00:17]} Bb4+ {[%emt 0:00:47]} 5. Nc3 {[%emt 0:00:18]} Nf6 {[%emt 0:00:16]} 6. Bd3 {[%emt 0:01:04]} O-O {[%emt 0:01:19]} 7. Nge2 {[%emt 0:00:26]} dxc4 {[%emt 0:00:20]} 8. Bxc4 {[%emt 0:00:10]} Nbd7 {[%emt 0:00:14] 8...Nc6 is the modern continuation. C01: French: Exchange Variation.} 9. Bg5 {[%emt 0:10:39]} Nb6 {[%emt 0:01:00]} 10. Bb3 {[%emt 0:01:07]} h6 {[%emt 0:00:38] The position is equal.} 11. Bh4 {[%emt 0:00:34]} Re8 {[%emt 0:00:12]} 12. O-O {[%emt 0:00:39][%cal Ob3f7]} a5 {[%emt 0:00:10][%cal Oa5a4]} 13. a3 {[%emt 0:06:07]} Bd6 {[%emt 0:00:09][%cal Od6h2] [#]} 14. h3 $146 {[%emt 0:00:21]} ({Predecessor:} 14. Re1 Bxh2+ 15. Kxh2 Ng4+ 16. Kg3 g5 17. Bxg5 Qxg5 {0-1 (17) Pons,F (1325)-Nowak,I (2164) LSS email 2011}) 14... c6 {[%emt 0:01:22]} 15. Re1 {[%emt 0:05:20]} Be6 {[%emt 0:00:24]} 16. Bc2 {[%emt 0:00:17]} Bc4 {[%emt 0:01:15]} 17. b3 {[%emt 0:01:11]} (17. Ne4 $11 Be7 18. N2c3 Nxe4 19. Bxe7 Qxe7 20. Nxe4) 17... Bxe2 $15 {[%emt 0:01:13]} 18. Nxe2 {[%emt 0:04:38]} Nbd5 {[%emt 0:00:42]} 19. Kf1 {[%emt 0:11:37]} Qb6 {[%emt 0:07:53]} 20. Qd3 {[%emt 0:01:43]} Re4 {[%emt 0:17:22]} 21. Bxf6 {[%emt 0:16:00]} Nxf6 {[%emt 0:00:08]} 22. Red1 {[%emt 0:10:14]} Ree8 {[%emt 0:09:59]} 23. Nc3 {[%emt 0:06:22]} Qa6 {[%emt 0:02:29]} ({Black should try} 23... Rad8 $17) 24. Qc4 {[%emt 0:00:30]} Nd5 {[%emt 0:16:14] Threatens to win with ...Nxc3.} (24... Qa7 {with more complications.} 25. d5 Rac8 26. Ne4 Nxe4 27. Bxe4 b5) 25. Nxd5 {[%emt 0:07:41]} cxd5 {[%emt 0:00:11][%mdl 64] [#] Pin} 26. Qxa6 {[%emt 0:00:24]} Rxa6 {[%emt 0:00:29]} 27. Bf5 {[%emt 0:00:09]} g6 {[%emt 0:03:30]} 28. Bg4 {[%emt 0:00:30]} Rd8 {[%emt 0:03:58]} 29. Rdc1 {[%emt 0:01:05]} Rc6 {[%emt 0:01:44]} 30. a4 {[%emt 0:01:04]} Rb6 {[%emt 0:12:56]} 31. Rc3 {[%emt 0:02:47]} Bb4 {[%emt 0:01:21]} 32. Re3 {[%emt 0:00:53]} Rc6 {[%emt 0:04:58]} 33. Rd1 {[%emt 0:01:48]} Rc3 {[%emt 0:03:38]} 34. Rxc3 {[%emt 0:01:15]} Bxc3 $11 {[%emt 0:00:09][%mdl 4096] Endgame KRB-KRB} 35. Ke2 {[%emt 0:00:10]} Rd6 {[%emt 0:01:22]} 36. Kd3 {[%emt 0:00:10]} Bb4 {[%emt 0:00:30]} 37. Bf3 {[%emt 0:00:25]} Kf8 {[%emt 0:01:30]} 38. Rb1 {[%emt 0:00:42]} Ke7 {[%emt 0:00:32]} 39. Rb2 {[%emt 0:00:10]} f6 {[%emt 0:06:47]} 40. h4 {[%emt 0:02:16]} b6 {[%emt 0:01:20]} 41. Rc2 {[%emt 0:31:44]} Kd7 {[%emt 0:06:13]} 42. h5 {[%emt 0:00:00]} gxh5 {[%emt 0:02:12]} 43. Bxh5 {[%emt 0:00:00]} f5 {[%emt 0:03:22] Against Bg4} 44. f4 {[%emt 0:00:00]} Rf6 {[%emt 0:05:22]} 45. Rc1 {[%emt 0:00:00]} Bd6 {[%emt 0:02:44]} 46. g3 {[%emt 0:00:00]} Rf8 {[%emt 0:01:30]} 47. Re1 {[%emt 0:00:00]} Bb4 {[%emt 0:03:20]} 48. Re5 {[%emt 0:00:00]} Rg8 {[%emt 0:00:15]} 49. Rxd5+ {[%emt 0:00:00]} Kc6 {[%emt 0:00:25] Black is on the road to losing.} (49... Ke6 $1 $14 50. Re5+ Kf6) 50. Rxf5 $18 {[%emt 0:00:00]} Rxg3+ {[%emt 0:00:23]} 51. Ke4 {[%emt 0:00:00]} Kd6 {[%emt 0:03:15]} (51... Rxb3 $16 {keeps fighting.} 52. Be8+ Kd6) 52. Rf6+ {[%emt 0:00:00]} Ke7 {[%emt 0:00:03]} (52... Kc7 $142 53. Rxh6 Rxb3) 53. Rxb6 {[%emt 0:00:00]} Rxb3 {[%emt 0:00:41]} (53... Rh3 {was called for.}) 54. f5 {[%emt 0:00:00][%cal Bf4f5,Bf5f6,Bf6f7][%mdl 32] Intending f6+ and mate.} Kd7 {[%emt 0:00:36]} 55. f6 {[%emt 0:00:00] Threatening mate with f7.} Rb1 {[%emt 0:00:27]} 56. f7 {[%emt 0:00:00][%cal Ob6b4] Rxb4! would kill now.} Rf1 {[%emt 0:00:07]} (56... Re1+ $142 57. Kd3 Ba3) 57. Rxh6 {[%emt 0:00:00]} (57. Rb7+ $142 Kd8 58. Be2) 57... Ke7 {[%emt 0:00:22]} (57... Re1+ $142 58. Kd3 Rf1) 58. Rh8 {[%emt 0:00:08] Black must now prevent Re8+.} Rf6 {[%emt 0:02:31]} 59. Re8+ {[%emt 0:01:02]} Kd7 {[%emt 0:00:05]} 60. Bg4+ {[%emt 0:00:18]} (60. Ke5 $142 Rf2 61. Bg4+ Kc7 62. Bf5 Bd6+ 63. Ke6) 60... Kc6 {[%emt 0:00:48]} 61. Be6 {[%emt 0:00:34] And now Ke5 would win.} Bd6 {[%emt 0:00:23]} 62. Rc8+ {[%emt 0:01:36]} Kb7 {[%emt 0:00:15]} 63. Kd5 {[%emt 0:00:43]} Bb4 {[%emt 0:00:07] [#]} 64. Rc5 $1 {[%emt 0:04:17]} Rf1 {[%emt 0:01:57]} 65. Ke4 {[%emt 0:10:22] Weighted Error Value: White=0.13 (very precise) /Black=0.47} (65. Ke5 $142 Bd2 66. Bc4) 1-0

[Event "HSK IM Invitational 2022"]
[Site "Hamburg"]
[Date "2022.05.21"]
[Round "2.4"]
[White "Fischer, Daniel"]
[Black "Kopylov, Michael"]
[Result "1/2-1/2"]
[ECO "B01"]
[WhiteElo "2367"]
[BlackElo "2378"]
[Annotator "TA"]
[PlyCount "44"]
[EventDate "2022.05.20"]
[EventType "tourn"]
[EventCountry "GER"]
[SourceTitle "playchess.com"]
[Source "ChessBase"]
[SourceQuality "1"]
[TimeControl "40/5400+30:1800+30"]

{[%evp 10,44,54,36,60,30,39,39,34,30,76,70,63,73,82,73,78,73,92,99,105,84,61,42,43,40,25,20,50,1,12,-10,0,-34,0,0,36]} 1. e4 {[%emt 0:00:00]} d5 {[%emt 0:00:17]} 2. exd5 {[%emt 0:00:00]} Qxd5 {[%emt 0:00:04]} 3. Nc3 {[%emt 0:00:00]} Qd6 {[%emt 0:00:12]} 4. d4 {[%emt 0:00:00]} Nf6 {[%emt 0:00:20]} 5. Nf3 {[%emt 0:00:02][%cal Bg1f3,Bf3e5,Be5c4][%mdl 32]} c6 {[%emt 0:00:49]} 6. Ne5 {[%emt 0:00:50]} Nbd7 {[%emt 0:00:18] B01: Scandinavian Defence.} 7. Nc4 {[%emt 0:00:06]} Qc7 {[%emt 0:00:09]} 8. a4 {[%emt 0:02:27][%cal Ba2a4,Ba4a5][%mdl 32] Inhibits b5.} Nb6 {[%emt 0:06:08] White is slightly better.} 9. Ne5 {[%emt 0:00:16]} Be6 {[%emt 0:09:15]} (9... a5 $11) 10. a5 $16 {[%emt 0:08:07]} Nbd7 {[%emt 0:07:36]} 11. Bf4 {[%emt 0:06:13][%cal Oe5g6] [#] Ng6! is the strong threat. White is more active.} Nxe5 {[%emt 0:04:07]} 12. Bxe5 {[%emt 0:00:28] [#]} ({Of course not} 12. dxe5 $6 Rd8 13. Bd3 Nd5 14. Nxd5 Rxd5 $11) 12... Qc8 $146 {[%emt 0:04:34]} ({Predecessor:} 12... Qd7 13. h3 g6 14. Bd3 Bg7 15. Ne4 O-O 16. Nc5 Qc8 17. O-O Bf5 18. Bxf5 gxf5 {1-0 (39) Mihok,O (2550)-Medvegyne Balogh,E (2073) Ajka 2019}) 13. Be2 {[%emt 0:03:25]} Bf5 {[%emt 0:16:55]} 14. O-O {[%emt 0:05:19]} e6 {[%emt 0:01:42] Against d5} 15. Bf3 {[%emt 0:09:08]} Be7 {[%emt 0:02:31]} 16. Qe2 {[%emt 0:01:31]} O-O {[%emt 0:02:49]} 17. Na4 {[%emt 0:06:25]} Nd7 {[%emt 0:06:54]} 18. Bf4 {[%emt 0:04:42]} Bf6 {[%emt 0:03:53]} 19. c3 {[%emt 0:17:16]} (19. g4 $1 $14 Bg6 20. g5) 19... Re8 {[%emt 0:01:53]} 20. Bd6 {[%emt 0:02:51]} (20. g4 $5 {[%cal Rg4f5]} Bg6 21. Nc5 $11) 20... e5 {[%emt 0:04:10]} 21. Qc4 {[%emt 0:05:09]} Qd8 {[%emt 0:08:49]} 22. Qb4 {[%emt 0:05:20]} ({Reject} 22. Bh5 g6 23. Bf3 exd4 24. cxd4 Qxa5 $15) 22... exd4 {[%emt 0:07:24] Weighted Error Value: White=0.11 (very precise) /Black=0.09 (flawless)} (22... e4 $5 {[%cal Re4f3]} 23. Be2 b5 $11) 1/2-1/2

[Event "HSK IM Invitational 2022"]
[Site "Hamburg"]
[Date "2022.05.21"]
[Round "2.5"]
[White "Hommer, Jeremy"]
[Black "Bracker, Arne"]
[Result "1/2-1/2"]
[ECO "C54"]
[WhiteElo "2152"]
[BlackElo "2276"]
[Annotator "TA"]
[PlyCount "101"]
[EventDate "2022.05.20"]
[EventType "tourn"]
[EventCountry "GER"]
[SourceTitle "playchess.com"]
[Source "ChessBase"]
[SourceQuality "1"]
[TimeControl "40/5400+30:1800+30"]

{[%evp 12,101,20,17,20,8,14,0,9,5,10,0,10,14,22,19,20,-16,-12,-53,-57,-87,-55,-47,0,0,14,-22,-6,-70,-41,-44,-45,-42,-36,-63,-35,-58,-60,-52,-23,-55,-66,-65,-64,-62,-58,-73,-13,-50,-42,-47,-45,-52,-34,-29,-27,-34,-11,-10,-8,-12,-6,-5,-2,-2,0,0,0,0,0,0,0,0,74,74,74,74,74,74,74,74,74,74,74,74,74,0,74,0,81,0]} 1. e4 {[%emt 0:00:04]} e5 {[%emt 0:00:08]} 2. Nf3 {[%emt 0:00:05]} Nc6 {[%emt 0:00:31]} 3. Bc4 {[%emt 0:00:05]} Bc5 {[%emt 0:00:17]} 4. c3 {[%emt 0:00:08]} Nf6 {[%emt 0:00:09]} 5. d3 {[%emt 0:00:07]} d6 {[%emt 0:00:13]} 6. Nbd2 {[%emt 0:01:14]} O-O {[%emt 0:00:59] 6...a5 is setting a new trend.} 7. O-O {[%emt 0:00:19]} Ne7 {[%emt 0:06:23] C54: Giuoco Piano: 4 c3 Nf6, main lines with 5 d4 and 5 d3.} 8. h3 {[%emt 0:04:26]} Ng6 {[%emt 0:00:58]} 9. d4 {[%emt 0:02:20]} Bb6 {[%emt 0:00:58] The position is equal.} 10. Re1 {[%emt 0:00:30]} c6 {[%emt 0:01:45]} 11. Bf1 {[%emt 0:02:13]} exd4 {[%emt 0:04:02]} 12. cxd4 {[%emt 0:00:15]} d5 {[%emt 0:00:28]} 13. e5 {[%emt 0:01:54]} Nh5 {[%emt 0:01:11]} 14. Nb3 {[%emt 0:02:07]} f6 {[%emt 0:03:16] [#]} 15. e6 $146 {[%emt 0:18:12][%cal Of3h4] Black must now prevent Nh4!} ({Predecessor:} 15. Be3 Nhf4 16. Qd2 fxe5 17. Nxe5 Qf6 18. Nxg6 Nxg6 19. g3 Bf5 20. Nc5 Bxc5 21. dxc5 {½-½ (58) Ortiz Suarez,I (2545)-Robson,R (2673) Chess.com INT 2020}) 15... Qd6 {[%emt 0:12:38]} 16. g3 {[%emt 0:04:10][%cal Ob3c5]} Bc7 {[%emt 0:03:31]} 17. Bg2 {[%emt 0:01:54]} Ne7 {[%emt 0:07:14]} (17... Re8 $15) 18. Nc5 $11 {[%emt 0:28:10]} g6 {[%emt 0:04:15]} 19. a3 {[%emt 0:00:10]} Re8 {[%emt 0:05:44]} (19... b6 $5 {[%cal Rb6c5]} 20. Nd3 Re8 $11) 20. Qe2 {[%emt 0:12:01]} ({White should try} 20. Bd2 $11) 20... Nf5 {[%emt 0:12:59][%cal Of5d4]} (20... b6 $5 {[%cal Rb6c5]} 21. Na6 Bd8 $11) 21. b4 {[%emt 0:10:18]} Nhg7 {[%emt 0:01:36]} (21... b6 $5 {[%cal Rf5g3]} 22. g4 Nxd4 23. Nxd4 bxc5 24. bxc5 Qxc5 $17) 22. g4 {[%emt 0:03:39]} Ne7 {[%emt 0:00:43]} 23. Bh6 {[%emt 0:00:56]} a5 {[%emt 0:04:58]} 24. Rac1 {[%emt 0:04:48]} axb4 {[%emt 0:02:18]} 25. axb4 {[%emt 0:00:00]} b6 {[%emt 0:00:41]} (25... g5 $5 {[%cal Re7g6]}) 26. Nd7 {[%emt 0:01:38]} Bxd7 {[%emt 0:01:12]} 27. exd7 {[%emt 0:00:08]} Qxd7 {[%emt 0:00:06][%cal Oe7f5] And now ...Nef5! would win.} 28. Bxg7 {[%emt 0:00:19]} Kxg7 {[%emt 0:00:07]} 29. Qe6 {[%emt 0:01:05]} Rad8 {[%emt 0:08:42]} (29... Qxe6 $17 30. Rxe6 Bf4) 30. g5 {[%emt 0:00:48]} Qxe6 {[%emt 0:01:55]} 31. Rxe6 {[%emt 0:00:01]} fxg5 {[%emt 0:00:16]} 32. b5 {[%emt 0:01:28]} Bf4 {[%emt 0:09:21]} 33. Rce1 {[%emt 0:00:03]} Kf7 {[%emt 0:00:19]} 34. bxc6 {[%emt 0:00:12]} h6 {[%emt 0:00:57][%cal Bh7h6,Bh6h5,Bh5g4][%mdl 32]} 35. Nh2 $1 {[%emt 0:00:59]} h5 {[%emt 0:04:35]} 36. Nf3 {[%emt 0:00:03]} g4 {[%emt 0:01:48]} 37. hxg4 {[%emt 0:00:01]} hxg4 {[%emt 0:00:02]} 38. Nh2 {[%emt 0:00:30]} Bxh2+ {[%emt 0:00:32]} 39. Kxh2 {[%emt 0:00:01]} Rh8+ {[%emt 0:00:01]} 40. Kg1 {[%emt 0:00:24]} Nf5 {[%emt 0:01:09]} 41. c7 {[%emt 0:12:45]} Rd7 {[%emt 0:09:00]} 42. Bxd5 {[%emt 0:02:12] Rd6+ would kill now. The board is on fire.} Rxd5 {[%emt 0:07:46] [#]} (42... Kg7 $1 $11) 43. Re8 $1 $16 {[%emt 0:00:15][%mdl 64] Decoy} Rxe8 {[%emt 0:01:49]} 44. Rxe8 {[%emt 0:00:06][%mdl 64] Remove Defender} Kxe8 {[%emt 0:02:07]} 45. c8=Q+ {[%emt 0:00:08][%mdl 4096] Endgame KQ-KRN} Kf7 {[%emt 0:01:42] [#]} 46. Qb7+ $1 {[%emt 0:00:32]} Ke6 {[%emt 0:00:34]} 47. Qxb6+ {[%emt 0:00:33]} Rd6 {[%emt 0:01:00]} 48. Qb3+ {[%emt 0:00:28]} Rd5 {[%emt 0:00:39]} 49. Qb6+ {[%emt 0:00:23]} Rd6 {[%emt 0:00:09]} 50. Qb3+ {[%emt 0:00:07]} (50. d5+ $5 Kxd5 51. Qb4 $16) 50... Rd5 $1 {[%emt 0:00:04]} 51. Qb6+ {[%emt 0:20:46] Weighted Error Value: White=0.14 (very precise) /Black=0.12 (very precise)} ({Better is} 51. Kg2 $16) 1/2-1/2